fUST/lending_fUST_20250204
["ID","MTS","AMOUNT","RATE_DAILY","PERIOD"]
[351510176,1738608645946,-555.8635401,0.00016712,2]
[351510179,1738608645956,-500.0,0.00016712,2]
[351510181,1738608645966,-500.0,0.00016712,2]
[351510182,1738608645975,-500.0,0.00016712,2]
[351510183,1738608645984,-500.0,0.00016712,2]
[351510184,1738608645993,-500.0,0.00016712,2]
[351510185,1738608646003,-500.0,0.00016712,2]
[351510187,1738608646012,-500.0,0.00016712,2]
[351510188,1738608646021,-500.0,0.00016712,2]
[351510189,1738608646031,-478.48967964,0.00016712,2]
[351510190,1738608646040,-500.0,0.00016712,2]
[351510191,1738608646050,-500.0,0.00016712,2]
[351510192,1738608646059,-500.0,0.00016712,2]
[351510193,1738608646068,-500.0,0.00016712,2]
[351510194,1738608646077,-500.0,0.00016712,2]
[351510195,1738608646085,-500.0,0.00016712,2]
[351510196,1738608646097,-500.0,0.00016712,2]
[351510197,1738608646106,-500.0,0.00016712,2]
[351510198,1738608646115,-500.0,0.00016712,2]
[351510199,1738608646123,-500.0,0.00016712,2]
[351510200,1738608646132,-500.0,0.00016712,2]
[351510201,1738608646142,-500.0,0.00016712,2]
[351510202,1738608646151,-500.0,0.00016712,2]
[351510203,1738608646160,-500.0,0.00016712,2]
[351510204,1738608646169,-500.0,0.00016712,2]
[351510205,1738608646178,-500.0,0.00016712,2]
[351510206,1738608646187,-447.93938206,0.00016712,2]
[351510207,1738608646196,-500.0,0.00016712,2]
[351510208,1738608646205,-500.0,0.00016712,2]
[351510210,1738608646215,-500.0,0.00016712,2]
[351510212,1738608646224,-500.0,0.00016712,2]
[351510214,1738608646233,-201.394098,0.00016712,2]
[351510216,1738608646243,-201.394098,0.00016712,2]
[351510218,1738608646252,-500.0,0.00016712,2]
[351510220,1738608646261,-500.0,0.00016712,2]
[351510222,1738608646271,-500.0,0.00016712,2]
[351510224,1738608646280,-500.0,0.00016712,2]
[351510226,1738608646290,-500.0,0.00016712,2]
[351510228,1738608646299,-500.0,0.00016712,2]
[351510230,1738608646309,-500.0,0.00016712,2]
[351510232,1738608646318,-500.0,0.00016712,2]
[351510234,1738608646327,-500.0,0.00016712,2]
[351510236,1738608646337,-606.29413628,0.00016712,2]
[351510238,1738608646347,-500.0,0.00016712,2]
[351510240,1738608646356,-500.0,0.00016712,2]
[351510242,1738608646366,-500.0,0.00016712,2]
[351510244,1738608646375,-353.02387664,0.00016712,2]
[351510246,1738608646385,-500.0,0.00016712,2]
[351510248,1738608646394,-500.0,0.00016712,2]
[351510250,1738608646404,-500.0,0.00016712,2]
[351510252,1738608646413,-500.0,0.00016712,2]
[351510254,1738608646423,-500.0,0.00016712,2]
[351510256,1738608646432,-500.0,0.00016712,2]
[351510258,1738608646442,-500.0,0.00016712,2]
[351510260,1738608646451,-500.0,0.00016712,2]
[351510262,1738608646460,-500.0,0.00016712,2]
[351510264,1738608646470,-500.0,0.00016712,2]
[351510266,1738608646479,-500.0,0.00016712,2]
[351510268,1738608646488,-500.0,0.00016712,2]
[351510270,1738608646498,-500.0,0.00016712,2]
[351510272,1738608646507,-500.0,0.00016712,2]
[351510274,1738608646516,-500.0,0.00016712,2]
[351510276,1738608646526,-500.0,0.00016712,2]
[351510278,1738608646535,-500.0,0.00016712,2]
[351510280,1738608646545,-500.0,0.00016712,2]
[351510282,1738608646554,-500.0,0.00016712,2]
[351510284,1738608646563,-500.0,0.00016712,2]
[351510286,1738608646572,-500.0,0.00016712,2]
[351510288,1738608646582,-500.0,0.00016712,2]
[351510290,1738608646594,-500.0,0.00016712,2]
[351510292,1738608646606,-1453.13,0.00016712,2]
[351510294,1738608646615,-500.0,0.00016712,2]
[351510296,1738608646625,-500.0,0.00016712,2]
[351510298,1738608646637,-500.0,0.00016712,2]
[351510300,1738608646646,-500.0,0.00016712,2]
[351510302,1738608646655,-500.0,0.00016712,2]
[351510304,1738608646665,-2716.41,0.00016712,2]
[351510306,1738608646674,-500.0,0.00016712,2]
[351510308,1738608646684,-623.48,0.00016712,2]
[351510310,1738608646694,-500.0,0.00016712,2]
[351510312,1738608646703,-377.10387859,0.00016712,2]
[351510314,1738608646712,-500.0,0.00016712,2]
[351510316,1738608646722,-500.0,0.00016712,2]
[351510318,1738608646731,-500.0,0.00016712,2]
[351510320,1738608646741,-151.0,0.00016712,2]
[351510322,1738608646751,-500.0,0.00016712,2]
[351510324,1738608646760,-500.0,0.00016712,2]
[351510326,1738608646770,-500.0,0.00016712,2]
[351510328,1738608646779,-500.0,0.00016712,2]
[351510330,1738608646790,-999.29,0.00016712,2]
[351510332,1738608646799,-2558.76,0.00016712,2]
[351510334,1738608646809,-151.0,0.00016712,2]
[351510336,1738608646818,-500.0,0.00016712,2]
[351510341,1738608646857,-500.0,0.00016712,2]
[351510343,1738608646867,-985.18,0.00016712,2]
[351510345,1738608646877,-500.0,0.00016712,2]
[351510347,1738608646886,-500.0,0.00016712,2]
[351510349,1738608646896,-500.0,0.00016712,2]
[351510351,1738608646906,-500.0,0.00016712,2]
[351510353,1738608646915,-500.0,0.00016712,2]
[351510355,1738608646924,-153.324186,0.00016712,2]
[351510357,1738608646934,-500.0,0.00016712,2]
[351510359,1738608646943,-500.0,0.00016712,2]
[351510361,1738608646952,-500.0,0.00016712,2]
[351510363,1738608646961,-1316.74,0.00016712,2]
[351510365,1738608646970,-500.0,0.00016712,2]
[351510367,1738608646980,-500.0,0.00016712,2]
[351510369,1738608646989,-500.0,0.00016712,2]
[351510371,1738608646999,-500.0,0.00016712,2]
[351510373,1738608647011,-500.0,0.00016712,2]
[351510376,1738608647021,-887.14,0.00016712,2]
[351510378,1738608647031,-500.0,0.00016712,2]
[351510379,1738608647041,-151.0,0.00016712,2]
[351510381,1738608647050,-500.0,0.00016712,2]
[351510383,1738608647059,-500.0,0.00016712,2]
[351510385,1738608647070,-500.0,0.00016712,2]
[351510387,1738608647080,-500.0,0.00016712,2]
[351510389,1738608647090,-500.0,0.00016712,2]
[351510392,1738608647101,-500.0,0.00016712,2]
[351510394,1738608647111,-500.0,0.00016712,2]
[351510395,1738608647120,-403.36078278,0.00016712,2]
[351510397,1738608647130,-4090.74,0.00016712,2]
[351510399,1738608647139,-151.0,0.00016712,2]
[351510401,1738608647148,-10400.52,0.00016712,2]
[351510403,1738608647158,-500.0,0.00016712,2]
[351510405,1738608647168,-500.0,0.00016712,2]
[351510407,1738608647177,-4679.97,0.00016712,2]
[351510409,1738608647187,-500.0,0.00016712,2]
[351510411,1738608647196,-500.0,0.00016712,2]
[351510413,1738608647206,-433.45187432,0.00016712,2]
[351510415,1738608647215,-242.107752,0.00016712,2]
[351510417,1738608647225,-500.0,0.00016712,2]
[351510419,1738608647235,-546.1,0.00016712,2]
[351510422,1738608647245,-500.0,0.00016712,2]
[351510423,1738608647254,-529.66,0.00016712,2]
[351510425,1738608647264,-500.0,0.00016712,2]
[351510427,1738608647273,-500.0,0.00016712,2]
[351510429,1738608647283,-951.81,0.00016712,2]
[351510432,1738608647293,-500.0,0.00016712,2]
[351510433,1738608647303,-719.99,0.00016712,2]
[351510435,1738608647312,-500.0,0.00016712,2]
[351510437,1738608647321,-500.0,0.00016712,2]
[351510440,1738608647331,-500.0,0.00016712,2]
[351510441,1738608647340,-500.0,0.00016712,2]
[351510443,1738608647351,-500.0,0.00016712,2]
[351510445,1738608647361,-500.0,0.00016712,2]
[351510448,1738608647371,-500.0,0.00016712,2]
[351510449,1738608647380,-151.0,0.00016712,2]
[351510451,1738608647390,-500.0,0.00016712,2]
[351510453,1738608647400,-500.0,0.00016712,2]
[351510456,1738608647410,-500.0,0.00016712,2]
[351510457,1738608647420,-500.0,0.00016712,2]
[351510459,1738608647429,-500.0,0.00016712,2]
[351510462,1738608647440,-500.0,0.00016712,2]
[351510464,1738608647449,-500.0,0.00016712,2]
[351510465,1738608647459,-510.49021339,0.00016712,2]
[351510468,1738608647468,-940.13,0.00016712,2]
[351510470,1738608647478,-500.0,0.00016712,2]
[351510472,1738608647488,-608.97090996,0.00016712,2]
[351510474,1738608647497,-151.0,0.00016712,2]
[351510476,1738608647506,-654.61,0.00016712,2]
[351510477,1738608647516,-500.0,0.00016712,2]
[351510479,1738608647525,-2260.2,0.00016712,2]
[351510481,1738608647534,-500.0,0.00016712,2]
[351510483,1738608647544,-500.0,0.00016712,2]
[351510485,1738608647553,-1858.0,0.00016712,2]
[351510487,1738608647563,-306.0,0.000168,2]
[351510489,1738608647574,-708.9905684,0.000168,2]
[351510491,1738608647584,-768.6559825,0.000168,2]
[351510493,1738608647599,-481.07376949,0.00016849,2]
[351510496,1738608647609,-500.0,0.00016849,2]
[351510497,1738608647618,-500.0,0.00016849,2]
[351510499,1738608647628,-500.0,0.00016849,2]
[351510501,1738608647639,-500.0,0.00016849,2]
[351510503,1738608647648,-500.0,0.00016849,2]
[351510505,1738608647658,-500.0,0.00016849,2]
[351510507,1738608647668,-616.01,0.00016849,2]
[351510509,1738608647678,-500.0,0.00016849,2]
[351510511,1738608647688,-500.0,0.00016849,2]
[351510513,1738608647698,-500.0,0.00016849,2]
[351510515,1738608647707,-500.0,0.00016849,2]
[351510517,1738608647717,-500.0,0.00016849,2]
[351510519,1738608647726,-500.0,0.00016849,2]
[351510521,1738608647736,-500.0,0.00016849,2]
[351510523,1738608647746,-500.0,0.00016849,2]
[351510525,1738608647756,-541.5333478,0.00016849,2]
[351510527,1738608647766,-500.0,0.00016849,2]
[351510529,1738608647775,-500.0,0.00016849,2]
[351510531,1738608647785,-321.456316,0.00016849,2]
[351510533,1738608647795,-500.0,0.00016849,2]
[351510535,1738608647805,-321.456316,0.00016849,2]
[351510537,1738608647815,-500.0,0.00016849,2]
[351510539,1738608647825,-500.0,0.00016849,2]
[351510541,1738608647837,-500.0,0.00016849,2]
[351510543,1738608647847,-500.0,0.00016849,2]
[351510545,1738608647856,-500.0,0.00016849,2]
[351510547,1738608647866,-500.0,0.00016849,2]
[351510549,1738608647875,-500.0,0.00016849,2]
[351510551,1738608647885,-151.0,0.00016849,2]
[351510553,1738608647894,-500.0,0.00016849,2]
[351510555,1738608647904,-151.0,0.00016849,2]
[351510557,1738608647914,-500.0,0.00016849,2]
[351510559,1738608647923,-500.0,0.00016849,2]
[351510561,1738608647933,-500.0,0.00016849,2]
[351510563,1738608647942,-626.14679974,0.00016849,2]
[351510565,1738608647952,-500.0,0.00016849,2]
[351510567,1738608647961,-500.0,0.00016849,2]
[351510569,1738608647971,-500.0,0.00016849,2]
[351510571,1738608647981,-151.0,0.00016849,2]
[351510573,1738608647991,-500.0,0.00016849,2]
[351510575,1738608648000,-500.0,0.00016849,2]
[351510577,1738608648010,-500.0,0.00016849,2]
[351510579,1738608648020,-500.0,0.00016849,2]
[351510581,1738608648030,-486.90027359,0.00016849,2]
[351510583,1738608648040,-500.0,0.00016849,2]
[351510585,1738608648049,-500.0,0.00016849,2]
[351510587,1738608648059,-500.0,0.00016849,2]
[351510589,1738608648068,-1453.13,0.00016849,2]
[351510591,1738608648078,-500.0,0.00016849,2]
[351510593,1738608648087,-500.0,0.00016849,2]
[351510595,1738608648099,-500.0,0.00016849,2]
[351510597,1738608648109,-500.0,0.00016849,2]
[351510599,1738608648118,-2716.41,0.00016849,2]
[351510601,1738608648128,-500.0,0.00016849,2]
[351510603,1738608648138,-623.48,0.00016849,2]
[351510605,1738608648148,-500.0,0.00016849,2]
[351510607,1738608648157,-151.0,0.00016849,2]
[351510609,1738608648166,-500.0,0.00016849,2]
[351510611,1738608648176,-500.0,0.00016849,2]
[351510613,1738608648187,-999.29,0.00016849,2]
[351510615,1738608648197,-2558.76,0.00016849,2]
[351510617,1738608648207,-500.0,0.00016849,2]
[351510619,1738608648218,-985.18,0.00016849,2]
[351510621,1738608648229,-500.0,0.00016849,2]
[351510623,1738608648238,-500.0,0.00016849,2]
[351510625,1738608648248,-500.0,0.00016849,2]
[351510627,1738608648258,-500.0,0.00016849,2]
[351510629,1738608648268,-500.0,0.00016849,2]
[351510631,1738608648278,-500.0,0.00016849,2]
[351510633,1738608648288,-500.0,0.00016849,2]
[351510635,1738608648298,-1316.74,0.00016849,2]
[351510637,1738608648307,-500.0,0.00016849,2]
[351510639,1738608648317,-500.0,0.00016849,2]
[351510641,1738608648327,-500.0,0.00016849,2]
[351510643,1738608648336,-505.49543181,0.00016849,2]
[351510645,1738608648348,-887.14,0.00016849,2]
[351510647,1738608648358,-500.0,0.00016849,2]
[351510649,1738608648367,-500.0,0.00016849,2]
[351510651,1738608648377,-500.0,0.00016849,2]
[351510653,1738608648388,-500.0,0.00016849,2]
[351510655,1738608648398,-500.0,0.00016849,2]
[351510657,1738608648408,-500.0,0.00016849,2]
[351510659,1738608648418,-500.0,0.00016849,2]
[351510661,1738608648428,-500.0,0.00016849,2]
[351510663,1738608648438,-4090.74,0.00016849,2]
[351510665,1738608648448,-10400.52,0.00016849,2]
[351510667,1738608648458,-500.0,0.00016849,2]
[351510669,1738608648467,-4679.97,0.00016849,2]
[351510671,1738608648476,-500.0,0.00016849,2]
[351510673,1738608648486,-546.1,0.00016849,2]
[351510675,1738608648496,-500.0,0.00016849,2]
[351510677,1738608648505,-529.66,0.00016849,2]
[351510679,1738608648515,-500.0,0.00016849,2]
[351510681,1738608648524,-500.0,0.00016849,2]
[351510683,1738608648534,-951.81,0.00016849,2]
[351510684,1738608648544,-500.44120524,0.00016849,2]
[351510687,1738608648554,-719.99,0.00016849,2]
[351510689,1738608648563,-500.0,0.00016849,2]
[351510690,1738608648573,-500.0,0.00016849,2]
[351510692,1738608648583,-500.0,0.00016849,2]
[351510693,1738608648593,-151.0,0.00016849,2]
[351510694,1738608648607,-499.24290956,0.00016849,2]
[351510695,1738608648618,-500.0,0.00016849,2]
[351510696,1738608648629,-500.0,0.00016849,2]
[351510697,1738608648640,-500.0,0.00016849,2]
[351510698,1738608648651,-500.0,0.00016849,2]
[351510699,1738608648661,-940.13,0.00016849,2]
[351510700,1738608648671,-654.61,0.00016849,2]
[351510702,1738608648682,-2260.2,0.00016849,2]
[351510704,1738608648692,-500.0,0.00016849,2]
[351510706,1738608648702,-500.0,0.00016849,2]
[351510708,1738608648712,-1858.0,0.00016849,2]
[351510710,1738608648723,-262.3014518,0.000169,2]
[351510712,1738608648733,-9260.84232547,0.00016908,5]
[351510714,1738608648742,-12735.6897217,0.00016908,2]
[351510716,1738608648752,-64846.74933516,0.00016986,5]
[351510718,1738608648761,-151.0,0.00016986,2]
[351510720,1738608648771,-500.0,0.00016986,2]
[351510722,1738608648780,-151.0,0.00016986,2]
[351510724,1738608648790,-500.0,0.00016986,2]
[351510726,1738608648801,-151.0,0.00016986,2]
[351510728,1738608648810,-500.0,0.00016986,2]
[351510730,1738608648820,-500.0,0.00016986,2]
[351510732,1738608648830,-627.46353948,0.00016986,2]
[351510734,1738608648840,-500.0,0.00016986,2]
[351510736,1738608648851,-151.0,0.00016986,2]
[351510738,1738608648861,-500.0,0.00016986,2]
[351510740,1738608648871,-500.0,0.00016986,2]
[351510742,1738608648881,-500.0,0.00016986,2]
[351510744,1738608648891,-646.20803136,0.00016986,2]
[351510746,1738608648904,-201.394098,0.00016986,2]
[351510748,1738608648913,-201.394098,0.00016986,2]
[351510750,1738608648923,-500.0,0.00016986,2]
[351510752,1738608648934,-500.0,0.00016986,2]
[351510754,1738608648945,-500.0,0.00016986,2]
[351510756,1738608648954,-500.0,0.00016986,2]
[351510758,1738608648964,-500.0,0.00016986,2]
[351510760,1738608648974,-500.0,0.00016986,2]
[351510762,1738608648984,-319.63867029,0.00016986,2]
[351510764,1738608648994,-500.0,0.00016986,2]
[351510766,1738608649003,-1453.13,0.00016986,2]
[351510768,1738608649013,-500.0,0.00016986,2]
[351510771,1738608649024,-2716.41,0.00016986,2]
[351510773,1738608649033,-623.48,0.00016986,2]
[351510775,1738608649043,-500.0,0.00016986,2]
[351510777,1738608649053,-500.0,0.00016986,2]
[351510779,1738608649063,-500.0,0.00016986,2]
[351510781,1738608649072,-999.29,0.00016986,2]
[351510783,1738608649083,-2558.76,0.00016986,2]
[351510785,1738608649092,-500.0,0.00016986,2]
[351510787,1738608649104,-985.18,0.00016986,2]
[351510789,1738608649114,-259.21442083,0.00016986,2]
[351510791,1738608649123,-500.0,0.00016986,2]
[351510793,1738608649132,-500.0,0.00016986,2]
[351510795,1738608649142,-500.0,0.00016986,2]
[351510797,1738608649152,-500.0,0.00016986,2]
[351510799,1738608649162,-1316.74,0.00016986,2]
[351510801,1738608649171,-887.14,0.00016986,2]
[351510803,1738608649181,-500.0,0.00016986,2]
[351510805,1738608649190,-500.0,0.00016986,2]
[351510807,1738608649200,-500.0,0.00016986,2]
[351510809,1738608649210,-4090.74,0.00016986,2]
[351510811,1738608649220,-10400.52,0.00016986,2]
[351510813,1738608649230,-4679.97,0.00016986,2]
[351510815,1738608649241,-500.0,0.00016986,2]
[351510817,1738608649251,-546.1,0.00016986,2]
[351510820,1738608649262,-500.0,0.00016986,2]
[351510822,1738608649272,-529.66,0.00016986,2]
[351510824,1738608649282,-500.0,0.00016986,2]
[351510826,1738608649292,-951.81,0.00016986,2]
[351510828,1738608649303,-719.99,0.00016986,2]
[351510830,1738608649312,-500.0,0.00016986,2]
[351510832,1738608649323,-500.0,0.00016986,2]
[351510834,1738608649333,-500.0,0.00016986,2]
[351510836,1738608649344,-500.0,0.00016986,2]
[351510838,1738608649355,-940.13,0.00016986,2]
[351510840,1738608649365,-654.61,0.00016986,2]
[351510842,1738608649375,-2260.2,0.00016986,2]
[351510844,1738608649385,-500.0,0.00016986,2]
[351510846,1738608649395,-500.0,0.00016986,2]
[351510848,1738608649406,-1858.0,0.00016986,2]
[351510851,1738608649417,-321.456316,0.00017,2]
[351510853,1738608649427,-321.456316,0.00017,2]
[351510865,1738608649539,-151.0,0.00017,2]
[351510867,1738608649549,-151.0,0.00017,2]
[351510869,1738608649559,-530.57746636,0.00017021,2]
[351510871,1738608649568,-600.0,0.00017068,2]
[351510873,1738608649577,-151.0,0.00017122,2]
[351510875,1738608649588,-174.602072,0.00017123,2]
[351510877,1738608649599,-151.0,0.00017123,2]
[351510879,1738608649610,-279.952,0.00017123,2]
[351510881,1738608649620,-151.0,0.00017123,2]
[351510883,1738608649630,-500.0,0.00017123,2]
[351510885,1738608649641,-500.0,0.00017123,2]
[351510887,1738608649651,-500.0,0.00017123,2]
[351510889,1738608649660,-500.0,0.00017123,2]
[351510891,1738608649670,-334.14660162,0.00017123,2]
[351510893,1738608649682,-500.0,0.00017123,2]
[351510895,1738608649691,-500.0,0.00017123,2]
[351510897,1738608649702,-500.0,0.00017123,2]
[351510899,1738608649711,-500.0,0.00017123,2]
[351510901,1738608649721,-500.0,0.00017123,2]
[351510903,1738608649730,-500.0,0.00017123,2]
[351510905,1738608649740,-1453.13,0.00017123,2]
[351510907,1738608649750,-500.0,0.00017123,2]
[351510909,1738608649759,-2716.41,0.00017123,2]
[351510911,1738608649769,-623.48,0.00017123,2]
[351510913,1738608649779,-500.0,0.00017123,2]
[351510915,1738608649788,-500.0,0.00017123,2]
[351510917,1738608649798,-999.29,0.00017123,2]
[351510919,1738608649808,-2558.76,0.00017123,2]
[351510921,1738608649818,-500.0,0.00017123,2]
[351510923,1738608649828,-985.18,0.00017123,2]
[351510925,1738608649838,-500.0,0.00017123,2]
[351510927,1738608649849,-500.0,0.00017123,2]
[351510929,1738608649858,-500.0,0.00017123,2]
[351510931,1738608649867,-500.0,0.00017123,2]
[351510933,1738608649876,-1316.74,0.00017123,2]
[351510935,1738608649886,-887.14,0.00017123,2]
[351510937,1738608649896,-500.0,0.00017123,2]
[351510939,1738608649906,-500.0,0.00017123,2]
[351510941,1738608649915,-500.0,0.00017123,2]
[351510943,1738608649925,-4090.74,0.00017123,2]
[351510945,1738608649934,-10400.52,0.00017123,2]
[351510947,1738608649944,-4679.97,0.00017123,2]
[351510949,1738608649953,-500.0,0.00017123,2]
[351510951,1738608649963,-546.1,0.00017123,2]
[351510953,1738608649972,-500.0,0.00017123,2]
[351510955,1738608649982,-529.66,0.00017123,2]
[351510957,1738608649991,-500.0,0.00017123,2]
[351510959,1738608650000,-951.81,0.00017123,2]
[351510961,1738608650010,-719.99,0.00017123,2]
[351510963,1738608650019,-500.0,0.00017123,2]
[351510965,1738608650029,-500.0,0.00017123,2]
[351510967,1738608650040,-500.0,0.00017123,2]
[351510969,1738608650050,-500.0,0.00017123,2]
[351510971,1738608650060,-940.13,0.00017123,2]
[351510973,1738608650069,-654.61,0.00017123,2]
[351510975,1738608650079,-2260.2,0.00017123,2]
[351510977,1738608650089,-500.0,0.00017123,2]
[351510979,1738608650100,-500.0,0.00017123,2]
[351510981,1738608650109,-1858.0,0.00017123,2]
[351510983,1738608650118,-151.0,0.00017148,2]
[351510985,1738608650127,-150.0,0.00017148,2]
[351510987,1738608650136,-1994.0,0.00017148,2]
[351510989,1738608650145,-537.0,0.00017148,2]
[351510991,1738608650154,-2299.0,0.00017148,2]
[351510993,1738608650164,-150.0,0.00017148,2]
[351510995,1738608650173,-158.233542,0.00017242,7]
[351510997,1738608650182,-292.132002,0.0001726,2]
[351510999,1738608650191,-151.0,0.0001726,2]
[351511001,1738608650200,-151.0,0.0001726,2]
[351511003,1738608650209,-500.0,0.0001726,2]
[351511005,1738608650220,-151.0,0.0001726,2]
[351511007,1738608650229,-151.0,0.0001726,2]
[351511009,1738608650238,-500.0,0.0001726,2]
[351511011,1738608650248,-151.0,0.0001726,2]
[351511013,1738608650257,-500.0,0.0001726,2]
[351511015,1738608650266,-500.0,0.0001726,2]
[351511017,1738608650275,-151.0,0.0001726,2]
[351511019,1738608650285,-500.0,0.0001726,2]
[351511021,1738608650294,-500.0,0.0001726,2]
[351511023,1738608650303,-500.0,0.0001726,2]
[351511025,1738608650312,-500.0,0.0001726,2]
[351511027,1738608650321,-500.0,0.0001726,2]
[351511029,1738608650331,-1453.13,0.0001726,2]
[351511031,1738608650341,-518.58,0.0001726,2]
[351511034,1738608650351,-2716.41,0.0001726,2]
[351511035,1738608650361,-623.48,0.0001726,2]
[351511037,1738608650370,-500.0,0.0001726,2]
[351511039,1738608650380,-500.0,0.0001726,2]
[351511041,1738608650389,-999.29,0.0001726,2]
[351511043,1738608650399,-2558.76,0.0001726,2]
[351511045,1738608650409,-500.0,0.0001726,2]
[351511047,1738608650418,-985.18,0.0001726,2]
[351511049,1738608650428,-500.0,0.0001726,2]
[351511051,1738608650437,-500.0,0.0001726,2]
[351511053,1738608650446,-500.0,0.0001726,2]
[351511055,1738608650456,-500.0,0.0001726,2]
[351511057,1738608650466,-1316.74,0.0001726,2]
[351511059,1738608650475,-887.14,0.0001726,2]
[351511061,1738608650485,-500.0,0.0001726,2]
[351511063,1738608650494,-500.0,0.0001726,2]
[351511065,1738608650504,-500.0,0.0001726,2]
[351511067,1738608650514,-4090.74,0.0001726,2]
[351511069,1738608650523,-10400.52,0.0001726,2]
[351511071,1738608650533,-4679.97,0.0001726,2]
[351511073,1738608650542,-524.96188372,0.0001726,2]
[351511075,1738608650551,-546.1,0.0001726,2]
[351511077,1738608650560,-500.0,0.0001726,2]
[351511079,1738608650569,-529.66,0.0001726,2]
[351511081,1738608650578,-500.0,0.0001726,2]
[351511083,1738608650586,-951.81,0.0001726,2]
[351511085,1738608650600,-719.99,0.0001726,2]
[351511087,1738608650609,-500.0,0.0001726,2]
[351511089,1738608650618,-500.0,0.0001726,2]
[351511091,1738608650627,-500.0,0.0001726,2]
[351511093,1738608650637,-151.0,0.0001726,2]
[351511095,1738608650648,-500.0,0.0001726,2]
[351511097,1738608650659,-940.13,0.0001726,2]
[351511099,1738608650668,-654.61,0.0001726,2]
[351511101,1738608650679,-2260.2,0.0001726,2]
[351511102,1738608650689,-500.0,0.0001726,2]
[351511103,1738608650699,-1858.0,0.0001726,2]
[351511104,1738608650708,-201.394098,0.00017396,2]
[351511105,1738608650718,-201.394098,0.00017396,2]
[351511106,1738608650727,-500.0,0.00017397,2]
[351511107,1738608650737,-496.74668439,0.00017397,2]
[351511108,1738608650746,-500.0,0.00017397,2]
[351511109,1738608650755,-500.0,0.00017397,2]
[351511110,1738608650765,-500.0,0.00017397,2]
[351511111,1738608650775,-321.456316,0.00017397,2]
[351511112,1738608650785,-321.456316,0.00017397,2]
[351511113,1738608650795,-500.0,0.00017397,2]
[351511114,1738608650804,-500.0,0.00017397,2]
[351511115,1738608650814,-151.0,0.00017397,2]
[351511116,1738608650823,-500.0,0.00017397,2]
[351511117,1738608650832,-232.343639,0.00017397,2]
[351511118,1738608650841,-500.0,0.00017397,2]
[351511119,1738608650853,-1453.13,0.00017397,2]
[351511120,1738608650863,-2716.41,0.00017397,2]
[351511121,1738608650873,-623.48,0.00017397,2]
[351511122,1738608650882,-151.0,0.00017397,2]
[351511123,1738608650892,-500.0,0.00017397,2]
[351511124,1738608650901,-500.0,0.00017397,2]
[351511125,1738608650911,-999.29,0.00017397,2]
[351511126,1738608650921,-2558.76,0.00017397,2]
[351511127,1738608650930,-500.0,0.00017397,2]
[351511128,1738608650940,-985.18,0.00017397,2]
[351511129,1738608650949,-500.0,0.00017397,2]